[Event "Ceske Budejovice GM 2022"]
[Site "Ceske Budejovice"]
[Date "2022.07.01"]
[Round "1.5"]
[White "Vykouk, Jan"]
[Black "Hollan, Martin"]
[Result "1-0"]
[ECO "C55"]
[WhiteElo "2476"]
[BlackElo "2399"]
[Annotator "TA"]
[PlyCount "63"]
[EventDate "2022.07.01"]
[EventType "tourn"]
[EventCountry "CZE"]
[SourceTitle "playchess.com"]
[Source "ChessBase"]
[SourceQuality "1"]
[TimeControl "40/5400+30:1800+30"]

{[%evp 10,63,39,40,44,0,23,18,45,43,40,29,45,39,39,35,87,100,102,89,96,83,105,119,113,108,136,144,152,141,195,153,136,125,132,133,131,94,110,79,299,290,300,271,360,343,354,353,359,329,1125,1108,29987,1487,1142,1002]} 1. e4 {[%emt 0:00:03]} e5 {[%emt 0:00:19]} 2. Nf3 {[%emt 0:00:05]} Nc6 {[%emt 0:00:08]} 3. Bc4 {[%emt 0:00:11]} Nf6 {[%emt 0:00:08]} 4. d3 {[%emt 0:00:06]} h6 {[%emt 0:00:10]} 5. c3 {[%emt 0:00:51]} d6 {[%emt 0:00:25]} 6. Nbd2 {[%emt 0:00:33][%cal Bb1d2,Bd2f1,Bf1e3,Be3d5][%mdl 32]} g5 {[%emt 0:00:24][%cal Bg7g5,Bg5g4][%mdl 32] C55: Two Knights: 4 d3, 4 d4 exd4 5 e5 and Max Lange Attack.} 7. Nf1 {[%emt 0:01:22]} g4 {[%emt 0:01:50]} 8. N3d2 {[%emt 0:01:14] [#]} Na5 $146 {[%emt 0:15:52] The position is equal.} ({Predecessor:} 8... d5 9. exd5 Nxd5 10. Ne3 Nxe3 11. fxe3 Na5 12. O-O Nxc4 13. Nxc4 Bg7 14. e4 h5 {½-½ (55) Alekseenko,K (2698)-Wang,H (2762) Ekaterinburg 2021}) 9. Bb5+ {[%emt 0:00:07]} Bd7 {[%emt 0:00:24]} 10. Bxd7+ {[%emt 0:00:14]} Qxd7 {[%emt 0:00:09]} 11. Ne3 {[%emt 0:01:11]} Nc6 {[%emt 0:06:07]} 12. O-O {[%emt 0:06:01]} Rg8 {[%emt 0:02:10]} (12... h5 $14) 13. f4 $16 {[%emt 0:02:38][%cal Bf2f4,Bf4f5][%mdl 32] Hoping for fxe5.} Nh5 {[%emt 0:12:41]} 14. f5 {[%emt 0:04:31]} Nf6 {[%emt 0:00:42]} 15. Nd5 {[%emt 0:00:47]} Nh7 {[%emt 0:13:27]} 16. Qa4 {[%emt 0:11:27]} a6 {[%emt 0:05:53]} 17. b4 {[%emt 0:00:08] White is more active.} b5 {[%emt 0:01:17]} 18. Qb3 {[%emt 0:00:04]} Ne7 {[%emt 0:00:50]} 19. a4 {[%emt 0:00:53]} c6 {[%emt 0:07:09]} (19... Nxd5 $16 20. exd5 (20. Qxd5 Rb8 $16) 20... Nf6) 20. Ne3 {[%emt 0:00:47]} (20. Nxe7 $6 Bxe7 21. axb5 cxb5 $16) 20... Nf6 {[%emt 0:01:26]} 21. d4 {[%emt 0:08:33]} h5 {[%emt 0:06:26]} 22. Bb2 {[%emt 0:00:05] Black must now prevent axb5.} Bh6 {[%emt 0:01:48]} 23. c4 {[%emt 0:00:12] aiming for axb5.} bxa4 {[%emt 0:01:27]} 24. Qd3 {[%emt 0:00:12]} ({Much weaker is} 24. Rxa4 $6 c5 25. bxc5 (25. dxe5 dxe5 26. Nd5 Nexd5 $11) 25... dxc5 $11) 24... c5 $2 {[%emt 0:04:02] This move loses the game for Black.} (24... Rb8 $16) 25. dxe5 $18 {[%emt 0:06:01]} (25. bxc5 dxc5 26. d5 Nc6 $14) 25... dxe5 {[%emt 0:00:08]} 26. Nd5 {[%emt 0:00:07]} Nfxd5 {[%emt 0:05:02]} 27. exd5 {[%emt 0:03:02] Threatens to win with Ne4.} Bxd2 {[%emt 0:05:45]} 28. Qxd2 {[%emt 0:00:08]} cxb4 {[%emt 0:01:39]} 29. Bxe5 {[%emt 0:00:19]} (29. Qxb4 a5 30. Qe1 (30. Qxa4 Qxa4 31. Rxa4 f6 $14) 30... f6 31. Bxe5 Nxf5 32. Bc3+ Kf7 $18) 29... Rc8 $2 {[%emt 0:05:44]} (29... a5 30. Qe3 Kd8 31. Qb6+ Kc8 32. Qc5+ Kb7 33. Rxa4 Rge8 34. Rxa5 Rxa5 35. Qxa5 Qd8 36. Qxb4+ Qb6+ 37. Qxb6+ Kxb6) 30. Rae1 {[%emt 0:02:08] And now Bf6 would win.} Nxf5 {[%emt 0:01:14] [#]} 31. Bf6+ {[%emt 0:00:08]} (31. Rxf5 $142 $1 {[%mdl 512]} Qxf5 32. Bg3+ Kd8 33. Qxb4 Qf6 {[#]} 34. Bh4 $1 {[%mdl 512]} Rc7 35. Qd6+ Kc8 36. Bxf6) 31... Kf8 {[%emt 0:00:08] [#]} 32. Rxf5 $1 {[%emt 0:00:21][%mdl 512] Weighted Error Value: White=0.08 (flawless) /Black=0.49} 1-0

[Event "Ceske Budejovice GM 2022"]
[Site "Ceske Budejovice"]
[Date "2022.07.02"]
[Round "2.1"]
[White "Sahidi, Samir"]
[Black "Hollan, Martin"]
[Result "1-0"]
[ECO "E70"]
[WhiteElo "2462"]
[BlackElo "2399"]
[Annotator "TA"]
[PlyCount "79"]
[EventDate "2022.07.01"]
[EventType "tourn"]
[EventCountry "CZE"]
[SourceTitle "playchess.com"]
[Source "ChessBase"]
[SourceQuality "1"]
[TimeControl "40/5400+30:1800+30"]

{[%evp 10,79,0,0,0,-18,-33,-25,-32,-45,-45,-42,-24,-70,-55,-58,-60,-62,-47,-51,-42,-51,-56,-68,-62,-77,-68,-86,-77,-105,-81,-129,-90,-101,-39,-36,-40,-44,138,154,153,156,150,111,117,99,267,266,360,363,342,362,370,356,409,460,454,432,565,553,582,574,516,552,684,669,1063,1063,973,973,728,704]} 1. d4 {[%emt 0:00:10]} Nf6 {[%emt 0:00:07][%cal Bg8f6,Bf6e8,Be8d6,Bd6f5][%mdl 32]} 2. c4 {[%emt 0:00:07]} g6 {[%emt 0:00:33]} 3. Nc3 {[%emt 0:01:35]} Bg7 {[%emt 0:00:06]} 4. e4 {[%emt 0:01:05]} O-O {[%emt 0:00:07]} 5. e5 {[%emt 0:03:39]} Ne8 {[%emt 0:00:07]} 6. Nf3 {[%emt 0:00:50]} d6 {[%emt 0:00:32] E70: King's Indian: Miscellaneous lines with 4 e4, including 5 Nge2 and 5 Bd3 0-0 6 Nge2.} 7. exd6 {[%emt 0:03:17]} Nxd6 {[%emt 0:01:12]} 8. Be2 {[%emt 0:04:07]} Bg4 {[%emt 0:01:13] [#] Black has an edge.} 9. h3 $146 {[%emt 0:04:55]} ({Predecessor:} 9. O-O Nc6 10. c5 Nf5 11. d5 Bxf3 12. Bxf3 Ncd4 13. Be4 h5 14. Bg5 Qd7 15. Re1 {1-0 (31) Inkiov,V (2421)-Fischer,M (2255) Baden 2018}) 9... Bxf3 {[%emt 0:00:21]} 10. Bxf3 {[%emt 0:00:07]} ({Don't play} 10. gxf3 e6 11. d5 exd5 12. Qxd5 Re8 $17) 10... c6 {[%emt 0:08:09]} 11. Qd3 {[%emt 0:03:33]} (11. Be2 $11 {was preferrable.}) 11... Nf5 {[%emt 0:01:53]} 12. d5 {[%emt 0:00:12]} cxd5 {[%emt 0:08:18]} (12... Nd7 {is more complex.} 13. dxc6 bxc6 14. Bxc6 Ne5) 13. cxd5 {[%emt 0:04:40]} Nd7 {[%emt 0:01:18]} 14. Bg4 {[%emt 0:07:06]} Nd6 {[%emt 0:09:08]} 15. Bxd7 {[%emt 0:04:37]} Qxd7 {[%emt 0:00:08]} 16. O-O {[%emt 0:00:06]} Rac8 {[%emt 0:02:33]} 17. Re1 {[%emt 0:03:52]} Rfe8 {[%emt 0:13:08]} 18. a4 {[%emt 0:02:46]} a6 {[%emt 0:07:47]} 19. Re2 {[%emt 0:05:54]} Qf5 {[%emt 0:05:58]} 20. Qd1 {[%emt 0:05:42]} (20. Qxf5 $142 Nxf5 21. Re4) 20... h5 {[%emt 0:05:57]} 21. Qb3 {[%emt 0:00:43]} Bxc3 {[%emt 0:03:29]} (21... Rc4 $17 22. Bd2 Bf6) 22. bxc3 $15 {[%emt 0:00:27][%cal Bb2c3,Bc3c4][%mdl 32]} Rc5 {[%emt 0:14:51]} 23. Ba3 {[%emt 0:00:41]} Qxd5 {[%emt 0:03:41] [#]} (23... Rxd5 $15 {keeps the upper hand.} 24. Bxd6 Rxd6) 24. c4 $1 $16 {[%emt 0:04:08]} Qc6 {[%emt 0:01:38]} 25. Bxc5 {[%emt 0:00:25]} Qxc5 {[%emt 0:00:04]} 26. Rae1 {[%emt 0:00:57][%cal Ba1e1,Be1d1,Bd1d7][%mdl 32]} e6 {[%emt 0:04:49]} 27. Rd1 {[%emt 0:08:16]} Qxc4 $2 {[%emt 0:03:40] [#] This costs Black the game.} (27... b6 $16 {keeps fighting.}) 28. Rb2 $18 {[%emt 0:02:09]} Qc7 {[%emt 0:03:01]} 29. Qb6 {[%emt 0:00:46]} Qxb6 {[%emt 0:00:38]} 30. Rxb6 {[%emt 0:00:07][%mdl 4096] Endgame KRR-KRN} Ne4 {[%emt 0:00:10]} 31. Rxb7 {[%emt 0:00:24]} Nc3 {[%emt 0:00:22]} 32. Rdd7 {[%emt 0:00:10]} Rf8 {[%emt 0:00:37] White is clearly winning.} 33. a5 {[%emt 0:00:12]} Ne4 {[%emt 0:00:36]} 34. Ra7 {[%emt 0:00:53][%cal Bb7a7,Ba7a6,Ba6b6][%mdl 32]} h4 {[%emt 0:00:29]} 35. Rd4 {[%emt 0:00:25]} Nc5 {[%emt 0:00:40]} 36. Rc4 {[%emt 0:00:35]} Nd3 {[%emt 0:00:18]} 37. Rxa6 {[%emt 0:00:26]} Rb8 {[%emt 0:00:14]} 38. Rb6 {[%emt 0:00:07] Inhibits Rb1+.} Ra8 {[%emt 0:00:05]} 39. a6 {[%emt 0:00:18]} Ra7 {[%emt 0:00:53]} 40. Ra4 {[%emt 0:02:25] Weighted Error Value: White=0.09 (flawless) /Black=0.35} 1-0

[Event "Ceske Budejovice GM 2022"]
[Site "Ceske Budejovice"]
[Date "2022.07.02"]
[Round "2.2"]
[White "Donchenko, Alexander"]
[Black "Vykouk, Jan"]
[Result "1-0"]
[ECO "A42"]
[WhiteElo "2640"]
[BlackElo "2476"]
[Annotator "TA"]
[PlyCount "89"]
[EventDate "2022.07.01"]
[EventType "tourn"]
[EventCountry "CZE"]
[SourceTitle "playchess.com"]
[Source "ChessBase"]
[SourceQuality "1"]
[TimeControl "40/5400+30:1800+30"]

{[%evp 14,89,56,49,71,52,60,0,0,0,20,0,0,0,-22,-68,-63,-67,-70,-49,0,0,58,49,52,47,119,108,143,98,93,87,94,93,94,101,103,89,80,85,183,172,229,143,168,156,202,196,161,155,354,338,476,467,500,415,523,516,612,583,677,663,791,775,725,678,682,658,618,637,598,526,511,511,493,490,416,395]} 1. c4 {[%emt 0:00:03]} g6 {[%emt 0:00:14]} 2. Nc3 {[%emt 0:02:02]} Bg7 {[%emt 0:00:10]} 3. d4 {[%emt 0:00:25]} d6 {[%emt 0:00:14]} 4. e4 {[%emt 0:00:55]} Nd7 {[%emt 0:03:45]} 5. Nf3 {[%emt 0:01:57]} e5 {[%emt 0:00:26]} 6. Be2 {[%emt 0:00:35]} Ne7 {[%emt 0:01:36]} 7. h4 {[%emt 0:02:26][%cal Bh2h4,Bh4h5][%mdl 32]} exd4 {[%emt 0:02:52]} 8. Nxd4 {[%emt 0:00:16]} O-O {[%emt 0:00:06] A42: Modern Defence: Averbakh Variation.} 9. h5 {[%emt 0:02:08] White is more active.} Nc6 {[%emt 0:00:05]} 10. Nxc6 {[%emt 0:04:09]} (10. Be3 $5 {[%cal Rh5g6]}) 10... bxc6 {[%emt 0:00:04] [#] The position is equal.} 11. Be3 $146 {[%emt 0:00:06]} ({Predecessor:} 11. hxg6 fxg6 12. Bh6 Bxh6 13. Rxh6 Qg5 14. Rh2 Rb8 15. Qc2 Nc5 16. g3 Bg4 17. f4 Qf6 18. Bxg4 Rxb2 {0-1 (18) Sarkar,J (2314)-Domingo Nunez,A (2339) Chess.com INT 2022}) 11... Nc5 {[%emt 0:02:01]} 12. Qd2 {[%emt 0:07:44]} Qe7 {[%emt 0:02:17]} 13. hxg6 {[%emt 0:14:57]} fxg6 {[%emt 0:01:01]} 14. Bd4 {[%emt 0:00:13]} (14. f3 $11) 14... Bxd4 $15 {[%emt 0:01:44]} (14... Nxe4 15. Nxe4 Qxe4 16. Bxg7 Kxg7 17. Qh6+ Kf7 18. O-O-O $16) 15. Qxd4 {[%emt 0:00:04]} Qg5 {[%emt 0:11:08]} 16. g3 {[%emt 0:03:37]} Ne6 {[%emt 0:01:53]} (16... Rb8 $15 {was preferrable.} 17. b3 a5) 17. Qd3 $1 $11 {[%emt 0:00:51]} Rb8 {[%emt 0:00:28]} (17... Nc5 $11 18. Qd4 a5) 18. f4 $14 {[%emt 0:01:52]} Qf6 {[%emt 0:05:04]} (18... Nxf4 19. gxf4 Rxf4 20. Qd2 $16) 19. O-O-O {[%emt 0:01:18]} Ba6 {[%emt 0:00:14]} (19... Nc5 $14 20. Qe3 Re8) 20. Qe3 $16 {[%emt 0:03:20]} Rb4 {[%emt 0:01:30]} 21. e5 {[%emt 0:06:19]} dxe5 {[%emt 0:02:39]} 22. fxe5 {[%emt 0:02:16]} Qg5 {[%emt 0:03:56]} 23. Qxg5 {[%emt 0:00:15]} Nxg5 {[%emt 0:00:04] [#]} 24. Rd7 $1 $36 {[%emt 0:01:28][%mdl 2048] Keeping Black busy.} Bxc4 {[%emt 0:06:11]} 25. Rh4 {[%emt 0:05:03]} ({Reject} 25. Rxc7 $6 Bxe2 26. Nxe2 Rf2 $11) 25... Be6 {[%emt 0:00:54] White must now prevent ...Rxh4.} 26. Rxc7 {[%emt 0:00:36]} Rb6 {[%emt 0:02:07]} (26... a5 $16) 27. Rxa7 $18 {[%emt 0:01:38]} Rf5 {[%emt 0:01:07]} (27... h5 $142 28. Na4 Rbb8) 28. Ra5 {[%emt 0:07:26]} h5 {[%emt 0:01:02]} 29. a4 {[%emt 0:03:18][%cal Ba2a4,Ba4a5,Ba5a6,Ba6a7][%mdl 32]} Rf8 {[%emt 0:02:49]} (29... Rb8 $16 30. Rc5 Rd8) 30. Rd4 {[%emt 0:09:56]} Rfb8 {[%emt 0:07:45]} 31. Rd2 {[%emt 0:00:17]} Bb3 $2 {[%emt 0:01:25] This move loses the game for Black.} (31... Bf5 $16 32. Ra7 Rb4) 32. Ra7 {[%emt 0:04:45]} Rb4 {[%emt 0:00:56]} (32... R6b7 {keeps fighting.}) 33. a5 {[%emt 0:03:28]} Nf7 {[%emt 0:00:15]} 34. Re7 {[%emt 0:03:04] Inhibits Re8.} h4 {[%emt 0:08:45]} 35. gxh4 {[%emt 0:02:00]} Rxh4 {[%emt 0:00:05]} 36. Rdd7 {[%emt 0:01:28]} Rh1+ {[%emt 0:01:07]} 37. Kd2 {[%emt 0:00:28]} Ra1 {[%emt 0:07:43]} 38. a6 {[%emt 0:00:33]} Kf8 {[%emt 0:05:00]} 39. a7 {[%emt 0:00:41]} Ra8 {[%emt 0:00:09]} 40. Bd1 {[%emt 0:00:52]} Nxe5 {[%emt 0:02:37]} 41. Rxe5 {[%emt 0:30:13]} ({Weaker is} 41. Bxb3 Nxd7 42. Rxd7 R1xa7 $14) 41... Bxd1 {[%emt 0:30:06]} 42. Nxd1 {[%emt 0:00:05] [#] Threatens to win with Ree7.} R1xa7 {[%emt 0:00:07]} 43. Rxa7 {[%emt 0:00:12]} Rxa7 {[%emt 0:00:03]} 44. Re6 {[%emt 0:00:06][%csl LRc6,LRg6]} Rd7+ {[%emt 0:00:19]} 45. Kc2 {[%emt 0:00:06] Weighted Error Value: White=0.13 (very precise) /Black=0.37} 1-0

[Event "Ceske Budejovice GM 2022"]
[Site "Ceske Budejovice"]
[Date "2022.07.02"]
[Round "2.3"]
[White "Malinovsky, Karel"]
[Black "Morgunov, Marc"]
[Result "1/2-1/2"]
[ECO "B51"]
[WhiteElo "2463"]
[BlackElo "2376"]
[Annotator "TA"]
[PlyCount "108"]
[EventDate "2022.07.01"]
[EventType "tourn"]
[EventCountry "CZE"]
[SourceTitle "playchess.com"]
[Source "ChessBase"]
[SourceQuality "1"]
[TimeControl "40/5400+30:1800+30"]

{[%evp 9,108,10,22,10,13,9,6,21,26,10,34,27,8,0,19,8,35,26,35,13,29,27,38,36,58,0,93,88,93,-21,-18,-22,-39,-23,-26,-30,-18,-18,-20,-17,-20,-20,-19,-22,0,0,0,0,3,-8,-8,-8,-4,-3,-6,-14,0,-8,0,0,0,0,0,0,0,-75,-62,-86,-8,-8,-8,-8,-8,-8,-8,-8,-8,-8,0,0,0,0,0,0,0,0,0,0,0,-8,-8,-8,-8,-8,-8,-8,-8,-8,-8,-8,-8]} 1. e4 {[%emt 0:00:03]} c5 {[%emt 0:00:23]} 2. Nf3 {[%emt 0:00:14]} d6 {[%emt 0:00:06]} 3. Bb5+ {[%emt 0:00:20]} Nd7 {[%emt 0:00:15]} 4. c4 {[%emt 0:00:32]} a6 {[%emt 0:04:30]} 5. Ba4 {[%emt 0:02:45]} Ngf6 {[%emt 0:03:06]} 6. Nc3 {[%emt 0:01:21] B51: Sicilian: Moscow Variation (3 Bb5+) without 3...Bd7.} e6 {[%emt 0:00:32]} 7. O-O {[%emt 0:02:47]} Be7 {[%emt 0:02:39]} 8. d4 {[%emt 0:06:35]} cxd4 {[%emt 0:03:58]} 9. Nxd4 {[%emt 0:00:59]} O-O {[%emt 0:00:28]} 10. Qe2 {[%emt 0:06:44]} Qc7 {[%emt 0:09:44]} 11. Rd1 {[%emt 0:18:23] [#]} Rd8 $146 {[%emt 0:14:59]} ({Predecessor:} 11... Nb6 12. Bb3 Bd7 13. Bg5 Rac8 14. Rac1 Rfe8 15. Nb1 Na4 16. Bxa4 Bxa4 17. b3 Bc6 {1-0 (52) Ozates,T (2217)-Nasanjargal,U (2460) Chess.com INT 2021}) 12. h3 {[%emt 0:07:28]} Bf8 {[%emt 0:04:57]} 13. Bg5 {[%emt 0:04:26][%cal Bc1g5,Bg5h4,Bh4g3][%mdl 32]} h6 {[%emt 0:10:09]} 14. Bh4 {[%emt 0:04:04]} g5 {[%emt 0:02:03]} 15. Bg3 {[%emt 0:01:58]} Ne5 {[%emt 0:00:08]} 16. Rac1 {[%emt 0:06:19][%cal Oc4c5]} b6 {[%emt 0:07:45]} 17. Nf3 {[%emt 0:08:00]} (17. b3 $14) 17... Ng6 {[%emt 0:06:09]} (17... Bb7 $11) 18. e5 $16 {[%emt 0:07:00]} Nh5 {[%emt 0:00:13][%cal Bf6h5,Bh5g3,Bg3e2][%mdl 32] [#]} 19. exd6 {[%emt 0:00:20] [#] White is more active.} (19. Bc2 $1 $16) 19... Nxg3 $1 $11 {[%emt 0:01:01]} 20. dxc7 {[%emt 0:00:18]} (20. fxg3 {feels hotter.} Bxd6 21. Bc2 f5 22. Qe1) 20... Nxe2+ {[%emt 0:00:03]} 21. Nxe2 {[%emt 0:00:08]} Rxd1+ {[%emt 0:00:06]} 22. Rxd1 {[%emt 0:00:05] Threatens to win with Rd8.} Ra7 {[%emt 0:00:07]} 23. Bd7 {[%emt 0:07:53]} Rxc7 {[%emt 0:00:08]} 24. Bxc8 {[%emt 0:00:05]} Rxc8 {[%emt 0:00:04]} 25. b3 {[%emt 0:00:06]} Be7 {[%emt 0:04:51]} 26. Kf1 {[%emt 0:02:39]} f5 {[%emt 0:06:49]} 27. Rd7 {[%emt 0:02:27]} Rd8 {[%emt 0:00:50]} 28. Rxd8+ {[%emt 0:00:08]} Bxd8 {[%emt 0:00:03][%mdl 4096] Endgame KBN-KNN} 29. Ned4 {[%emt 0:02:50]} Kf7 {[%emt 0:00:46]} 30. g4 {[%emt 0:01:44]} Kf6 {[%emt 0:08:35]} 31. gxf5 {[%emt 0:02:53]} exf5 {[%emt 0:00:03]} 32. Nc6 $1 {[%emt 0:00:06]} Be7 {[%emt 0:00:05]} 33. Nb8 $1 {[%emt 0:03:04]} Nf4 {[%emt 0:00:38]} 34. Nd7+ {[%emt 0:00:58]} Ke6 {[%emt 0:04:56]} 35. Nxb6 {[%emt 0:00:12]} Bc5 {[%emt 0:00:08] Prevents Nd4+.} 36. Na4 {[%emt 0:00:46]} Ba7 {[%emt 0:00:04]} 37. c5 {[%emt 0:01:00]} (37. h4 $11 {remains equal.}) 37... Kd5 $17 {[%emt 0:00:48]} 38. b4 {[%emt 0:00:44] [#]} Nxh3 {[%emt 0:01:47]} ({Better is} 38... Kc4 $1 $17) 39. Nb6+ $11 {[%emt 0:00:33] The position is equal.} Bxb6 {[%emt 0:01:45]} 40. cxb6 {[%emt 0:00:06] Strongly threatening b7. KN-KN} Kc6 {[%emt 0:00:03]} 41. Nd4+ {[%emt 0:04:06]} Kxb6 {[%emt 0:00:09]} 42. a4 {[%emt 0:07:46]} Nf4 {[%emt 0:05:28]} 43. a5+ {[%emt 0:02:53]} Kc7 {[%emt 0:01:31]} 44. b5 {[%emt 0:01:15]} axb5 {[%emt 0:00:18]} 45. Nxb5+ {[%emt 0:00:08]} Kb7 {[%emt 0:00:09]} 46. Nd6+ {[%emt 0:00:24]} Ka6 {[%emt 0:00:04]} 47. Nxf5 {[%emt 0:00:06]} h5 {[%emt 0:00:07]} 48. Nd6 {[%emt 0:02:31]} Kxa5 {[%emt 0:00:07]} 49. Ne4 {[%emt 0:00:06]} Ne6 {[%emt 0:00:52]} 50. Kg2 {[%emt 0:01:01]} Kb4 {[%emt 0:00:17]} 51. Kg3 {[%emt 0:00:29]} Kc4 {[%emt 0:00:21]} 52. Nxg5 {[%emt 0:00:29][%mdl 64] Remove Defender} Nxg5 {[%emt 0:00:03]} 53. Kh4 {[%emt 0:00:07][%csl LRg5,LRh5]} Ne4 {[%emt 0:00:06] ( -> ...Nf6)} 54. Kxh5 {[%emt 0:00:06]} Nxf2 {[%emt 0:00:02] Weighted Error Value: White=0.12 (very precise) /Black=0.10 (very precise)} 1/2-1/2

[Event "Ceske Budejovice GM 2022"]
[Site "Ceske Budejovice"]
[Date "2022.07.02"]
[Round "2.4"]
[White "Stefansson, Hannes"]
[Black "Gazik, Viktor"]
[Result "1-0"]
[ECO "E16"]
[WhiteElo "2541"]
[BlackElo "2544"]
[Annotator "TA"]
[PlyCount "119"]
[EventDate "2022.07.01"]
[EventType "tourn"]
[EventCountry "CZE"]
[SourceTitle "playchess.com"]
[Source "ChessBase"]
[SourceQuality "1"]
[TimeControl "40/5400+30:1800+30"]

{[%evp 11,119,25,45,31,31,20,33,33,33,28,31,28,39,31,47,40,41,47,78,79,84,66,98,90,112,48,59,56,145,72,145,101,85,0,1,6,2,4,13,10,33,34,33,34,33,-16,8,8,8,8,14,14,14,14,14,8,8,8,8,8,8,8,8,8,8,8,8,8,8,8,8,8,8,8,8,8,8,8,20,35,29962,29964,29964,29965,29967,29968,29968,29968,29968,29967,29967,29965,29963,8,29968,29970,29972,29973,29973,29974,29974,29975,29975,29975,29976,29977,29978,29979,29979,29980]} 1. d4 {[%emt 0:00:07]} Nf6 {[%emt 0:00:05]} 2. c4 {[%emt 0:00:19]} e6 {[%emt 0:00:06]} 3. Nf3 {[%emt 0:00:27]} Bb4+ {[%emt 0:00:46]} 4. Bd2 {[%emt 0:00:25]} Qe7 {[%emt 0:00:26]} 5. g3 {[%emt 0:00:49]} Nc6 {[%emt 0:09:31]} 6. Nc3 {[%emt 0:01:17]} d6 {[%emt 0:08:02]} 7. d5 {[%emt 0:19:05] E11: Bogo-Indian.} exd5 {[%emt 0:05:43]} 8. Nxd5 {[%emt 0:00:24]} Nxd5 {[%emt 0:03:12]} 9. cxd5 {[%emt 0:00:10] White is slightly better.} Bg4 {[%emt 0:02:41] Hoping for ...Bxf3.} 10. Bg2 {[%emt 0:06:32]} Bxf3 {[%emt 0:02:33]} 11. Bxf3 {[%emt 0:00:13]} Bxd2+ {[%emt 0:02:22]} 12. Qxd2 {[%emt 0:06:32]} Ne5 {[%emt 0:00:33]} 13. Bg2 {[%emt 0:00:18]} O-O {[%emt 0:02:12]} 14. O-O {[%emt 0:02:11] [#]} a5 $146 {[%emt 0:09:04]} ({Predecessor:} 14... Qd7 15. Rac1 Rac8 16. Rc3 Rfe8 17. Rfc1 a5 18. e4 Re7 19. f4 Ng4 20. Qd4 Qe8 {½-½ (42) Lehnen,P (1706)-Siger,C (1959) LSS email 2007}) 15. Rac1 {[%emt 0:02:30]} b5 {[%emt 0:14:27]} 16. Rc3 {[%emt 0:10:45]} f5 {[%emt 0:07:25]} 17. Rfc1 {[%emt 0:02:11]} Rf7 {[%emt 0:00:03]} 18. Qd4 {[%emt 0:05:26]} (18. Rxc7 $16 Qxc7 19. Rxc7 Rxc7 20. f4) 18... Qd8 {[%emt 0:02:58]} 19. Bh3 {[%emt 0:01:51]} Kh8 {[%emt 0:03:58]} (19... b4 $14 20. R3c2 h5) 20. b3 {[%emt 0:07:28]} ({White should play} 20. f4 $1 {[%cal Rf4e5]} Ng6 21. Qd3) 20... Qf6 {[%emt 0:03:15]} ({Black should try} 20... h5) 21. Kf1 {[%emt 0:04:05]} Qh6 {[%emt 0:02:23]} 22. Qh4 {[%emt 0:13:29]} (22. Kg2 $1 $16) 22... Qxh4 $11 {[%emt 0:02:00]} 23. gxh4 {[%emt 0:00:06][%cal Bg3h4,Bh4h5,Bh5g6][%mdl 32]} Ra7 {[%emt 0:00:09]} 24. h5 $1 {[%emt 0:00:21]} g5 {[%emt 0:02:57]} 25. hxg6 $1 {[%emt 0:00:08]} hxg6 {[%emt 0:07:58]} 26. f4 {[%emt 0:01:25]} Ng4 {[%emt 0:00:04]} ({Much less strong is} 26... b4 27. Rg3 Nd7 28. Rxg6 $16) 27. Bxg4 {[%emt 0:00:12]} fxg4 {[%emt 0:00:03]} 28. Ke1 {[%emt 0:02:03]} (28. Kg2 $14 {is more appropriate.}) 28... Rxf4 {[%emt 0:03:02]} 29. Rxc7 {[%emt 0:00:06]} Rxc7 {[%emt 0:00:02]} 30. Rxc7 {[%emt 0:00:08][%mdl 4096] Endgame KR-KR} Rd4 {[%emt 0:00:25]} 31. Ra7 {[%emt 0:00:47]} a4 {[%emt 0:00:25]} 32. bxa4 {[%emt 0:00:15]} bxa4 {[%emt 0:00:03]} 33. Kf2 {[%emt 0:00:26]} Rxd5 {[%emt 0:03:25]} 34. Rxa4 {[%emt 0:00:07]} Rh5 {[%emt 0:00:05]} 35. Kg2 {[%emt 0:01:54]} Re5 {[%emt 0:00:40]} 36. Kf1 {[%emt 0:02:16]} Rf5+ {[%emt 0:01:07]} 37. Ke1 {[%emt 0:01:13]} Rh5 {[%emt 0:00:18]} 38. Rxg4 {[%emt 0:00:17]} Rxh2 {[%emt 0:00:03]} 39. Rxg6 {[%emt 0:00:21]} Rh1+ $1 {[%emt 0:00:11]} 40. Kf2 {[%emt 0:00:34]} Ra1 {[%emt 0:00:07]} 41. Rxd6 {[%emt 0:30:24]} Rxa2 {[%emt 0:30:04]} 42. Rg6 {[%emt 0:00:20]} Kh7 {[%emt 0:00:00]} 43. Rg4 {[%emt 0:00:00]} Ra8 {[%emt 0:00:00]} 44. Kf3 {[%emt 0:00:00]} Rf8+ {[%emt 0:00:00]} 45. Ke4 {[%emt 0:00:00] White wants to mate with Kd4.} Re8+ $2 {[%emt 0:00:00][%mdl 8192] White now steadily converts the win.} (45... Kh6 $14) 46. Kd3 {[%emt 0:00:00]} Rd8+ {[%emt 0:00:00]} 47. Kc4 {[%emt 0:00:00]} Kh6 {[%emt 0:00:00]} 48. e4 $1 {[%emt 0:00:00]} Kh5 {[%emt 0:00:00]} 49. Rg7 {[%emt 0:00:00]} Rc8+ {[%emt 0:00:00]} 50. Kd5 {[%emt 0:00:00]} Rd8+ {[%emt 0:00:00]} 51. Ke6 {[%emt 0:00:00]} Re8+ {[%emt 0:00:00] [#]} 52. Re7 $2 {[%emt 0:00:00]} (52. Kf5 $1 {mates} Rf8+ 53. Ke6 Re8+ 54. Kf5 Rf8+ 55. Ke5 Re8+ 56. Kf4 Rf8+ 57. Ke3) 52... Ra8 $2 {[%emt 0:04:07][%mdl 8192] [#]} (52... Rh8 $11) 53. Kf6 $1 {[%emt 0:00:00] White mates.} Ra1 {[%emt 0:03:09]} 54. Rh7+ {[%emt 0:00:00]} Kg4 {[%emt 0:00:07]} 55. Rg7+ {[%emt 0:00:00]} Kf4 {[%emt 0:00:25]} 56. e5 {[%emt 0:00:00][%cal Be4e5,Be5e6,Be6e7][%mdl 32]} Ke4 {[%emt 0:01:10]} 57. e6 {[%emt 0:00:00]} Kd5 {[%emt 0:01:23]} 58. e7 {[%emt 0:00:00]} Re1 {[%emt 0:00:56]} 59. Kf7 {[%emt 0:00:00]} Rf1+ {[%emt 0:00:04]} 60. Kg8 {[%emt 0:00:00] Weighted Error Value: White=0.24 (precise) /Black=0.32} 1-0